bitfinex/quotes_SOLUSD_20250413
["timestamp","ask_amount","ask_price","bid_price","bid_amount"]
[1744577604905,27.91005367,126.67,126.61,37.70995367]
[1744577605083,27.90995367,126.66,126.61,7.8979]
[1744577605491,35.80555367,126.66,126.61,7.8979]
[1744577606296,35.80555367,126.66,126.6,27.97295367]
[1744577606297,0.14216157,126.65,126.6,27.97295367]
[1744577606499,0.14216157,126.65,126.6,0.063]
[1744577606500,27.90995367,126.64,126.6,0.063]
[1744577606886,28.05211524,126.65,126.6,7.9617]
[1744577607084,28.05211524,126.65,126.6,35.87165367]
[1744577607298,0.14216157,126.65,126.6,35.87165367]
[1744577607510,8.03916157,126.63,126.6,0.063]
[1744577607710,35.94911524,126.63,126.6,0.063]
[1744577608799,53.57738724,126.61,126.6,0.063]
[1744577609313,34.92773838,126.61,126.6,0.063]
[1744577609475,53.57738724,126.61,126.6,0.063]
[1744577609672,61.47558724,126.61,126.6,0.063]
[1744577612386,33.56563357,126.61,126.6,0.063]
[1744577612697,61.47558724,126.61,126.6,0.063]
[1744577615617,61.47558724,126.61,126.59,0.0001]
[1744577615782,19.07613357,126.57,126.56,0.063]
[1744577616100,48.21078724,126.57,126.56,0.063]
[1744577617803,8.04286157,126.57,126.56,0.063]
[1744577618900,7.9002,126.58,126.56,0.063]
[1744577620707,35.81015367,126.58,126.56,0.063]
[1744577621602,28.05211524,126.57,126.56,0.063]
[1744577622808,35.95281524,126.57,126.56,0.063]
[1744577627994,54.88678724,126.57,126.56,0.063]
[1744577629726,54.88678724,126.57,126.55,0.0001]
[1744577629914,0.14216157,126.56,126.55,0.0001]
[1744577630113,28.05211524,126.56,126.55,0.0001]
[1744577630840,35.81065367,126.57,126.55,0.0001]
[1744577631928,46.98608724,126.56,126.55,0.0001]
[1744577632812,7.9007,126.57,126.55,0.0001]
[1744577633031,35.81065367,126.57,126.55,0.0001]
[1744577633215,25.37982413,126.57,126.55,0.0001]
[1744577633537,7.9007,126.57,126.55,0.0001]
[1744577635034,17.47912413,126.56,126.55,0.0001]
[1744577635351,17.6212857,126.56,126.55,0.0001]
[1744577636339,25.38042413,126.56,126.55,0.0001]
[1744577636514,7.9013,126.56,126.55,0.0001]
[1744577637336,7.9007,126.57,126.55,0.0001]
[1744577641547,17.47912413,126.57,126.55,0.0001]
[1744577641931,17.6212857,126.56,126.55,0.0001]
[1744577642121,36.5552577,126.56,126.55,0.0001]
[1744577642326,36.5552577,126.56,126.53,0.03]
[1744577642327,63.79438183,126.56,126.53,0.03]
[1744577642541,36.41309613,126.54,126.53,0.03]
[1744577643619,44.31569613,126.54,126.53,0.03]
[1744577644320,18.933972,126.53,126.51,0.063]
[1744577644530,17.6212857,126.52,126.51,0.063]
[1744577645039,34.1843,126.54,126.51,0.063]
[1744577645223,17.47912413,126.52,126.51,0.063]
[1744577646452,25.38292413,126.52,126.51,0.063]
[1744577647345,0.14216157,126.51,126.48,0.063]
[1744577647534,36.5552577,126.5,126.48,0.063]
[1744577648151,0.14216157,126.49,126.47,0.03]
[1744577648458,44.31939613,126.48,126.47,0.03]
[1744577649751,19.07613357,126.47,126.43,0.063]
[1744577649953,36.5552577,126.44,126.43,0.063]
[1744577650543,44.4640577,126.44,126.43,0.063]
[1744577651646,18.933972,126.43,126.42,0.03]
[1744577651853,36.41309613,126.43,126.42,0.03]
[1744577652551,44.4647577,126.43,126.42,0.0001]
[1744577652757,0.14216157,126.4,126.36,0.03]
[1744577652958,17.47912413,126.38,126.36,0.03]
[1744577653139,28.04240487,126.4,126.36,0.03]
[1744577653539,6.6245,126.42,126.36,28.07240487]
[1744577653742,47.11853844,126.42,126.37,28.04240487]
[1744577653943,28.18456644,126.42,126.37,28.04240487]
[1744577654171,0.14216157,126.4,126.36,0.03]
[1744577654362,28.18456644,126.37,126.36,0.03]
[1744577654654,36.09776644,126.37,126.36,0.03]
[1744577654859,7.9132,126.37,126.36,0.03]
[1744577655065,35.95560487,126.37,126.36,0.03]
[1744577655258,7.9132,126.37,126.36,0.03]
[1744577655946,35.95560487,126.37,126.36,0.03]
[1744577656261,7.9132,126.37,126.36,0.03]
[1744577656634,35.95500487,126.38,126.36,0.03]
[1744577657244,28.04240487,126.37,126.36,0.03]
[1744577657445,35.95500487,126.38,126.36,0.03]
[1744577658464,35.95560487,126.37,126.36,0.03]
[1744577659149,7.9132,126.37,126.36,0.03]
[1744577659848,8.05536157,126.37,126.36,0.03]
[1744577660047,36.09776644,126.37,126.36,0.03]
[1744577660373,55.03173844,126.37,126.36,0.03]
[1744577662567,7.9132,126.37,126.36,0.03]
[1744577663363,26.847172,126.37,126.36,0.03]
[1744577663562,55.03173844,126.37,126.36,0.03]
[1744577663766,26.98933357,126.37,126.36,0.03]
[1744577664155,55.03173844,126.37,126.36,0.03]
[1744577664849,0.14216157,126.36,126.32,27.57240487]
[1744577665159,28.18456644,126.36,126.31,28.04240487]
[1744577665752,0.14216157,126.36,126.3,0.03]
[1744577665959,28.18456644,126.36,126.31,28.04240487]
[1744577666355,0.14216157,126.36,126.32,28.04240487]
[1744577666881,7.9145,126.35,126.32,28.04240487]
[1744577667082,7.9145,126.35,126.3,7.9473]
[1744577667083,7.9145,126.35,126.31,27.54240487]
[1744577667377,0.14216157,126.34,126.3,0.03]
[1744577667680,47.11853844,126.31,126.3,0.03]
[1744577667977,0.14216157,126.31,126.3,0.03]
[1744577668989,8.05916157,126.31,126.3,0.03]
[1744577669182,55.03553844,126.31,126.3,0.03]
[1744577669681,58.94336098,126.31,126.3,0.03]
[1744577670055,65.1979265,126.31,126.3,0.03]
[1744577670379,55.03553844,126.31,126.3,0.03]
[1744577670587,8.05916157,126.31,126.3,0.03]
[1744577672481,55.03553844,126.31,126.3,0.03]
[1744577672983,8.05916157,126.31,126.3,0.03]
[1744577673478,55.03553844,126.31,126.3,0.03]
[1744577673669,26.99313357,126.31,126.3,0.03]
[1744577673874,8.05916157,126.31,126.3,0.03]
[1744577675256,25.61022941,126.31,126.3,0.03]
[1744577675786,44.54420141,126.31,126.3,0.03]
[1744577675986,0.14216157,126.3,126.24,0.03]
[1744577676157,0.14216157,126.28,126.24,17.58106784]
[1744577676566,19.07613357,126.3,126.25,17.55106784]
[1744577676757,36.62720141,126.3,126.25,17.55106784]
[1744577677065,7.9182,126.29,126.24,7.9513]
[1744577677592,7.9182,126.29,126.25,17.55106784]
[1744577677796,0.14216157,126.28,126.24,17.58106784]
[1744577678180,7.9177,126.3,126.26,17.55106784]
[1744577679007,25.46876784,126.3,126.25,17.55106784]
[1744577679601,25.46876784,126.3,126.25,25.47176784]
[1744577679812,7.9177,126.3,126.26,17.55106784]
[1744577680012,8.05926157,126.31,126.27,17.55106784]
[1744577680301,8.05926157,126.31,126.26,17.55106784]
[1744577680478,8.05926157,126.31,126.25,7.9207]
[1744577680681,8.05926157,126.31,126.26,17.55106784]
[1744577680881,8.05926157,126.31,126.27,17.55106784]
[1744577681385,8.05926157,126.31,126.26,17.55106784]
[1744577681386,0.14216157,126.3,126.26,17.55106784]
[1744577682098,7.9171,126.31,126.26,17.55106784]
[1744577682311,102.6862,126.36,126.3,17.55106784]
[1744577682609,0.14216157,126.34,126.3,17.55106784]
[1744577682908,0.14216157,126.34,126.29,17.55106784]
[1744577683199,0.14216157,126.34,126.3,17.55106784]
[1744577683406,8.05786157,126.34,126.3,17.55106784]
[1744577684806,7.9157,126.34,126.3,17.55106784]
[1744577685678,8.05616157,126.36,126.32,17.55106784]
[1744577685898,8.05616157,126.36,126.33,17.55106784]
[1744577686100,25.60722941,126.36,126.31,17.55106784]
[1744577686297,8.05616157,126.36,126.32,17.55106784]
[1744577687201,0.063,126.37,126.33,17.55106784]
[1744577687406,0.063,126.37,126.35,17.55106784]
[1744577687608,0.063,126.37,126.36,17.55106784]
[1744577690414,0.063,126.37,126.35,7.9144]
[1744577690619,0.063,126.37,126.36,17.55106784]
[1744577692213,0.063,126.37,126.36,25.46486784]
[1744577692702,0.063,126.37,126.36,31.53616784]
[1744577693211,0.063,126.4,126.37,18.64964886]
[1744577693410,0.063,126.4,126.39,17.55106784]
[1744577694087,0.063,126.4,126.39,19.14746784]
[1744577694988,0.063,126.4,126.39,27.05946784]
[1744577696919,0.063,126.4,126.39,19.14746784]
[1744577697125,0.063,126.4,126.36,25.3414]
[1744577697323,0.063,126.4,126.38,17.55106784]
[1744577697497,0.063,126.4,126.36,11.3564]
[1744577697698,0.063,126.4,126.37,17.55106784]
[1744577698021,17.61406784,126.4,126.33,9.5119]
[1744577698318,7.9138,126.36,126.31,17.55106784]
[1744577698488,7.9138,126.36,126.31,25.46786784]
[1744577698692,7.9138,126.36,126.32,17.55106784]
[1744577699195,7.9138,126.36,126.32,28.05513051]
[1744577699811,28.05513051,126.37,126.32,28.05513051]
[1744577699812,35.96863051,126.37,126.32,28.05513051]
[1744577700713,7.9135,126.37,126.33,28.05513051]
[1744577701916,0.20516157,126.4,126.36,28.05513051]
[1744577702103,0.063,126.4,126.36,28.05513051]
[1744577703626,7.9743,126.4,126.36,28.05513051]
[1744577706418,36.02943051,126.4,126.35,28.05513051]
[1744577706606,28.05513051,126.39,126.34,28.05513051]
[1744577706806,28.05513051,126.35,126.29,1.5964]
[1744577707123,28.05513051,126.31,126.26,28.05513051]
[1744577707423,28.48161522,126.34,126.29,28.05513051]
[1744577707619,7.9157,126.33,126.29,28.05513051]
[1744577707925,7.9157,126.33,126.28,28.05513051]
[1744577708093,35.97083051,126.33,126.28,28.05513051]
[1744577708918,35.97083051,126.33,126.26,7.9199]
[1744577709100,35.97083051,126.33,126.27,28.05513051]
[1744577709427,28.05513051,126.29,126.24,28.08513051]
[1744577709592,35.97523051,126.26,126.24,0.03]
[1744577710734,34.50869208,126.25,126.24,0.03]
[1744577710938,53.44266408,126.25,126.24,0.03]
[1744577711598,62.95816408,126.25,126.24,0.03]
[1744577712426,44.30851522,126.25,126.24,0.03]
[1744577712625,62.95816408,126.25,126.24,0.03]
[1744577713222,19.07613357,126.24,126.23,0.03]
[1744577713395,47.13126408,126.24,126.23,0.03]
[1744577713598,8.34788471,126.24,126.23,0.03]
[1744577713801,7.9214,126.24,126.23,0.03]
[1744577714206,8.06356157,126.24,126.23,0.03]
[1744577714405,55.05266408,126.24,126.23,0.03]
[1744577715642,55.05266408,126.24,126.17,0.03]
[1744577715643,19.07613357,126.23,126.17,0.03]
[1744577715833,28.19729208,126.18,126.17,0.03]
[1744577716218,53.69706408,126.18,126.17,0.03]
[1744577717234,19.07613357,126.17,126.16,0.03]
[1744577717731,55.05706408,126.17,126.16,0.03]
[1744577718123,61.36354933,126.17,126.16,0.03]
[1744577718318,81.17804933,126.17,126.08,28.05513051]
[1744577718513,0.14216157,126.12,126.06,10.8228832]
[1744577718725,0.14216157,126.09,126.06,2.8905832]
[1744577718909,28.05513051,126.09,126.06,2.8905832]
[1744577719113,0.14216157,126.08,126.06,2.8905832]
[1744577719327,28.19729208,126.08,126.06,2.8905832]
[1744577719714,8.07426157,126.07,126.06,2.8905832]
[1744577720246,55.06336408,126.07,126.06,2.8905832]
[1744577720541,0.14216157,126.1,126.06,28.05513051]
[1744577720709,0.14216157,126.1,126.0,46.49113051]
[1744577720710,7.9295,126.11,126.08,28.05513051]
[1744577721039,7.9295,126.11,126.09,28.05513051]
[1744577721236,6.5658,126.15,126.09,28.05513051]
[1744577721237,4.12308795,126.18,126.1,28.05513051]
[1744577721440,35.97843051,126.21,126.16,28.05513051]
[1744577721620,1.0,126.23,126.17,28.05513051]
[1744577721828,4.12250452,126.19,126.14,8.1945]
[1744577722144,7.9207,126.25,126.18,28.05513051]
[1744577722311,4.12156205,126.22,126.16,28.05513051]
[1744577722510,7.9207,126.25,126.16,28.05513051]
[1744577722713,0.063,126.3,126.2,8.1945]
[1744577723121,0.063,126.3,126.21,28.55181043]
[1744577723325,0.063,126.3,126.24,26.0]
[1744577723629,4.04514774,126.33,126.29,28.05513051]
[1744577723836,4.04514774,126.33,126.31,28.05513051]
[1744577724038,7.9149,126.35,126.31,28.05513051]
[1744577724361,4.17971189,126.37,126.34,28.05513051]
[1744577724533,0.063,126.37,126.34,28.05513051]
[1744577724741,0.20516157,126.37,126.34,28.05513051]
[1744577725057,8.11846157,126.37,126.25,27.7226]
[1744577725250,8.11846157,126.37,126.31,42.56401951]
[1744577725556,18.64964886,126.36,126.32,42.56401951]
[1744577725955,0.28432314,126.35,126.32,42.56401951]
[1744577726138,24.80444886,126.36,126.31,42.56401951]
[1744577726326,0.14216157,126.35,126.31,42.56401951]
[1744577726529,0.28432314,126.35,126.31,42.56401951]
[1744577727428,0.14216157,126.36,126.33,42.56401951]
[1744577727737,7.9764,126.37,126.33,42.56401951]
[1744577727738,0.20516157,126.37,126.33,42.56401951]
[1744577728570,42.56401951,126.35,126.25,19.8013]
[1744577728855,0.14216157,126.34,126.3,42.56401951]
[1744577729351,0.42648471,126.36,126.3,42.56401951]
[1744577729556,42.99050422,126.36,126.31,42.56401951]
[1744577729749,42.99050422,126.36,126.3,42.56401951]
[1744577730260,0.14216157,126.34,126.3,42.56401951]
[1744577733160,0.14216157,126.34,126.27,42.56401951]
[1744577733161,0.14216157,126.32,126.27,42.56401951]
[1744577733351,0.14216157,126.32,126.28,42.56401951]
[1744577734737,8.05866157,126.32,126.28,42.56401951]
[1744577735359,0.14216157,126.32,126.28,42.56401951]
[1744577737172,8.05856157,126.32,126.27,7.9194]
[1744577737344,8.05856157,126.32,126.28,42.56401951]
[1744577737666,0.14216157,126.32,126.28,42.56401951]
[1744577737847,8.20012314,126.33,126.29,42.56401951]
[1744577737848,0.14216157,126.33,126.29,42.56401951]
[1744577738043,9.76,126.36,126.31,42.56401951]
[1744577738263,0.14216157,126.35,126.31,42.56401951]
[1744577738480,7.9151,126.34,126.3,42.56401951]
[1744577739545,8.34118471,126.35,126.31,42.56401951]
[1744577739939,8.34118471,126.35,126.25,19.8019]
[1744577740160,8.34118471,126.35,126.3,42.56401951]
[1744577740660,50.90520422,126.35,126.3,42.56401951]
[1744577740861,50.90520422,126.35,126.29,42.56401951]
[1744577741041,0.14216157,126.32,126.28,42.56401951]
[1744577741763,0.14216157,126.32,126.29,42.56401951]
[1744577742072,0.14216157,126.32,126.25,7.9207]
[1744577742270,8.05866157,126.32,126.28,42.56401951]
[1744577745170,8.05866157,126.32,126.28,28.07537677]
[1744577745964,4.11256969,126.35,126.31,28.07537677]
[1744577746274,8.05676157,126.35,126.31,28.07537677]
[1744577747272,36.13213834,126.35,126.3,28.07537677]
[1744577748151,0.14216157,126.32,126.24,7.9641]
[1744577748366,0.14216157,126.32,126.23,102.4039]
[1744577748367,28.07537677,126.29,126.22,0.03]
[1744577748577,28.07537677,126.32,126.27,28.07537677]
[1744577748887,0.14216157,126.33,126.29,28.07537677]
[1744577749047,28.40964886,126.36,126.31,28.07537677]
[1744577749048,9.76,126.36,126.31,28.07537677]
[1744577749244,0.14216157,126.35,126.31,28.07537677]
[1744577749448,28.21753834,126.35,126.3,28.07537677]
[1744577750480,36.13223834,126.35,126.3,28.07537677]
[1744577752178,36.13223834,126.35,126.29,28.07537677]
[1744577752484,36.13223834,126.35,126.3,28.07537677]
[1744577752990,28.50186148,126.34,126.28,28.07537677]
[1744577753349,28.50186148,126.34,126.29,28.07537677]
[1744577753982,7.9157,126.33,126.29,28.07537677]
[1744577754681,7.9157,126.33,126.3,28.07537677]
[1744577755270,7.9157,126.33,126.29,28.07537677]
[1744577755460,19.8466,126.37,126.32,28.07537677]
[1744577755786,7.9138,126.36,126.32,28.07537677]
[1744577755975,27.7598,126.37,126.32,28.07537677]
[1744577756562,55.83517677,126.37,126.32,28.07537677]
[1744577757062,27.7598,126.37,126.32,28.07537677]
[1744577757377,28.21753834,126.36,126.31,28.07537677]
[1744577757980,7.9145,126.35,126.31,28.07537677]
[1744577758966,7.9145,126.35,126.32,28.07537677]
[1744577759581,7.9145,126.35,126.31,28.07537677]
[1744577760286,7.9145,126.35,126.32,28.07537677]
[1744577761560,7.9145,126.35,126.31,28.07537677]
[1744577761882,7.9145,126.35,126.32,28.07537677]
[1744577764190,7.9138,126.36,126.32,28.07537677]
[1744577765589,55.77387677,126.36,126.31,28.07537677]
[1744577766168,7.9138,126.36,126.32,28.07537677]
[1744577767267,7.9138,126.36,126.32,17.53547706]
[1744577768295,7.9138,126.36,126.33,17.53547706]
[1744577768474,0.063,126.37,126.35,17.53547706]
[1744577768663,0.063,126.37,126.36,17.53547706]
[1744577770471,0.063,126.37,126.36,25.44927706]
[1744577773594,0.063,126.4,126.39,17.53547706]
[1744577774269,0.063,126.4,126.38,17.53547706]
[1744577774489,0.063,126.4,126.39,17.53547706]
[1744577775495,17.53547706,126.45,126.39,17.53547706]
[1744577775496,0.063,126.49,126.43,0.42648471]
[1744577775685,0.063,126.49,126.47,17.53547706]
[1744577775887,0.063,126.49,126.47,35.07095412]
[1744577776092,0.063,126.49,126.47,17.53547706]
[1744577776279,0.063,126.49,126.47,25.44247706]
[1744577776483,0.063,126.49,126.46,7.9075]
[1744577776683,0.063,126.49,126.47,17.53547706]
[1744577776881,17.65596031,126.53,126.47,17.53547706]
[1744577777075,17.65596031,126.53,126.49,17.53547706]
[1744577777281,9.75256031,126.53,126.49,27.98087116]
[1744577777497,7.9034,126.53,126.49,27.98087116]
[1744577778194,7.9034,126.53,126.5,27.98087116]
[1744577778393,0.063,126.55,126.52,27.98087116]
[1744577778900,0.063,126.55,126.54,27.98087116]
[1744577781386,18.11969702,126.63,126.55,18.64964886]
[1744577781599,0.063,126.63,126.61,27.98087116]
[1744577782485,55.61397116,126.66,126.61,27.98087116]
[1744577783075,7.8951,126.66,126.62,27.98087116]
[1744577783281,7.8951,126.66,126.58,3.97450335]
[1744577783511,7.8951,126.66,126.62,27.98087116]
[1744577784386,7.8951,126.66,126.61,27.98087116]
[1744577784607,7.8951,126.66,126.62,27.98087116]
[1744577785100,4.10369184,126.67,126.65,27.98087116]
[1744577785294,0.0001,126.67,126.66,27.98087116]
[1744577786682,7.4566,126.69,126.66,27.98087116]
[1744577786884,2.9535832,126.7,126.68,27.98087116]
[1744577787080,2.9535832,126.7,126.66,27.98087116]
[1744577787081,10.8461832,126.7,126.66,27.98087116]
[1744577787507,10.8461832,126.7,126.67,27.98087116]
[1744577788197,10.8461832,126.7,126.68,27.98087116]
[1744577788681,2.9535832,126.7,126.69,27.98087116]
[1744577789807,2.9535832,126.7,126.69,46.77268159]
[1744577789987,0.063,126.73,126.72,27.98087116]
[1744577791510,0.063,126.73,126.71,27.98087116]
[1744577792401,0.063,126.73,126.72,27.98087116]
[1744577793306,0.063,126.73,126.69,27.98087116]
[1744577793619,28.18603273,126.73,126.68,27.98087116]
[1744577793991,27.98087116,126.72,126.67,27.98087116]
[1744577794696,7.892,126.71,126.67,27.98087116]
[1744577795006,7.892,126.71,126.68,27.98087116]
[1744577795208,7.892,126.71,126.65,7.8955]
[1744577795209,7.892,126.71,126.67,27.98087116]
[1744577796033,27.98087116,126.7,126.65,27.98087116]
[1744577796315,27.98087116,126.68,126.63,27.98087116]
[1744577796495,27.98087116,126.67,126.62,27.98087116]
[1744577797009,7.8951,126.66,126.62,27.98087116]
[1744577797197,7.8951,126.66,126.63,27.98087116]
[1744577797511,7.8939,126.68,126.64,27.98087116]
[1744577797714,7.8934,126.69,126.65,27.98087116]
[1744577798122,7.8921,126.71,126.68,27.98087116]
[1744577799431,35.87227116,126.72,126.67,27.98087116]
[1744577799738,7.8914,126.72,126.67,27.98087116]
[1744577799924,7.8914,126.72,126.68,27.98087116]
[1744577800432,7.8914,126.72,126.65,7.8957]
[1744577800433,7.9539,126.73,126.69,27.98087116]
[1744577800614,27.98087116,126.71,126.66,27.98087116]
[1744577801320,28.12303273,126.72,126.66,27.98087116]
[1744577802012,7.9539,126.73,126.69,27.98087116]
[1744577802328,0.063,126.73,126.71,27.98087116]
[1744577802531,0.063,126.73,126.72,27.98087116]
[1744577802705,0.063,126.73,126.71,27.98087116]
[1744577802906,0.063,126.73,126.72,27.98087116]
[1744577804521,0.063,126.73,126.7,9.7]
[1744577804703,0.063,126.73,126.72,27.98087116]
[1744577806934,0.063,126.73,126.72,54.52192002]
[1744577807128,0.063,126.73,126.72,82.92927589]
[1744577811812,0.063,126.73,126.72,54.52192002]
[1744577812137,0.063,126.73,126.72,7.8914]
[1744577812432,0.03,126.78,126.73,18.933972]
[1744577812610,0.03,126.78,126.77,27.98087116]
[1744577814026,0.03,126.78,126.74,7.8901]
[1744577814217,0.03,126.78,126.74,27.98087116]
[1744577814834,7.9176,126.78,126.74,27.98087116]
[1744577815239,35.89847116,126.78,126.73,27.98087116]
[1744577815656,7.9176,126.78,126.74,27.98087116]
[1744577818947,35.44897116,126.78,126.72,7.8911]
[1744577819138,35.44897116,126.78,126.73,27.98087116]
[1744577819847,7.4681,126.78,126.74,27.98087116]
[1744577821760,55.16807116,126.78,126.7,18.64964886]
[1744577822052,7.8895,126.75,126.71,27.98087116]
[1744577822840,7.8895,126.75,126.7,27.98087116]
[1744577822841,42.42077116,126.75,126.7,27.98087116]
[1744577823037,14.4399,126.75,126.7,27.98087116]
[1744577823245,7.8891,126.76,126.72,27.98087116]
[1744577823826,7.8891,126.76,126.7,18.64964886]
[1744577824026,7.8891,126.76,126.72,27.98087116]
[1744577825449,7.8891,126.76,126.7,27.98087116]
[1744577825450,28.12303273,126.75,126.7,27.98087116]
[1744577826437,7.8901,126.74,126.7,27.98087116]
[1744577826829,27.98087116,126.72,126.66,82.6]
[1744577827027,27.98087116,126.7,126.64,0.063]
[1744577827244,27.98087116,126.69,126.64,0.063]
[1744577827456,8.1877,126.71,126.67,27.98087116]
[1744577827750,36.16857116,126.71,126.66,27.98087116]
[1744577828131,12.00165437,126.74,126.69,27.98087116]
[1744577828345,39.98252553,126.74,126.69,27.98087116]
[1744577828635,7.8914,126.72,126.68,27.98087116]
[1744577829137,7.8914,126.72,126.69,27.98087116]
[1744577830556,7.8914,126.72,126.68,27.98087116]
[1744577831059,27.6199,126.72,126.67,27.98087116]
[1744577831858,28.12303273,126.71,126.64,0.063]
[1744577832048,28.09937273,126.71,126.66,27.98087116]
[1744577832233,55.60077116,126.72,126.67,27.98087116]
[1744577832941,7.8914,126.72,126.69,27.98087116]
[1744577833146,7.8901,126.74,126.71,27.98087116]
[1744577833855,7.8901,126.74,126.7,27.98087116]
[1744577834234,27.98087116,126.73,126.68,27.98087116]
[1744577834554,7.8901,126.74,126.69,27.98087116]
[1744577834757,35.87097116,126.74,126.69,27.98087116]
[1744577835150,55.59637116,126.74,126.69,27.98087116]
[1744577835845,27.98087116,126.73,126.68,27.98087116]
[1744577836955,27.98087116,126.73,126.66,7.8948]
[1744577836956,7.8907,126.73,126.69,27.98087116]
[1744577837544,8.1877,126.75,126.72,27.98087116]
[1744577837844,16.0775,126.75,126.69,26.0]
[1744577838032,16.0775,126.75,126.72,27.98087116]
[1744577839138,16.0775,126.75,126.71,27.98087116]
[1744577839355,16.0775,126.75,126.72,27.98087116]
[1744577840356,16.0775,126.75,126.71,27.98087116]
[1744577840549,44.05837116,126.75,126.69,26.0]
[1744577840863,16.0775,126.75,126.7,27.98087116]
[1744577841053,16.0775,126.75,126.71,27.98087116]
[1744577841443,7.8891,126.76,126.73,27.98087116]
[1744577842656,7.8883,126.77,126.73,27.98087116]
[1744577844064,7.8883,126.77,126.69,44.64964886]
[1744577844065,35.86917116,126.77,126.72,27.98087116]
[1744577844263,7.8883,126.77,126.73,27.98087116]
[1744577845166,7.8883,126.77,126.73,17.42152664]
[1744577845334,15.9598,126.78,126.74,17.42152664]
[1744577845541,0.063,126.79,126.77,17.42152664]
[1744577846158,0.063,126.79,126.72,36.0711755]
[1744577846159,0.063,126.79,126.76,17.42152664]
[1744577846544,0.063,126.79,126.75,17.42152664]
[1744577846739,0.063,126.79,126.78,17.42152664]
[1744577847267,0.063,126.79,126.78,36.0711755]
[1744577847567,0.063,126.79,126.78,17.42152664]
[1744577848368,0.063,126.79,126.78,17.84801135]
[1744577848669,0.063,126.79,126.78,44.38526021]
[1744577849368,0.063,126.79,126.78,54.79790666]
[1744577857562,0.063,126.79,126.78,54.37142195]
[1744577859959,0.063,126.79,126.78,54.79790666]
[1744577861971,0.063,126.79,126.78,35.72177309]
[1744577862174,0.063,126.79,126.78,27.83417309]
[1744577863654,0.063,126.79,126.76,27.83417309]
[1744577865984,0.063,126.79,126.78,27.83417309]
[1744577866277,0.063,126.79,126.76,27.83417309]
[1744577868286,27.89717309,126.79,126.73,7.8906]
[1744577868461,27.89717309,126.79,126.74,27.83417309]
[1744577868980,27.89717309,126.79,126.75,27.83417309]
[1744577868981,0.063,126.79,126.75,27.83417309]
[1744577869191,7.95,126.79,126.75,17.41785283]
[1744577869483,6.49351056,126.79,126.75,17.41785283]
[1744577869880,17.41785283,126.78,126.72,9.66]
[1744577870176,17.41785283,126.78,126.68,9.66]
[1744577870177,17.41785283,126.73,126.68,9.66]
[1744577870387,17.41785283,126.72,126.67,17.41785283]
[1744577871175,7.892,126.71,126.67,17.41785283]
[1744577872362,7.892,126.71,126.65,0.063]
[1744577872576,25.30985283,126.71,126.65,0.063]
[1744577872976,7.892,126.71,126.67,17.41785283]
[1744577873880,7.892,126.71,126.65,7.9585]
[1744577874080,7.892,126.71,126.67,17.41785283]
[1744577874260,7.892,126.71,126.66,17.41785283]
[1744577874457,7.892,126.71,126.65,0.063]
[1744577874657,17.41785283,126.69,126.65,0.063]
[1744577874876,25.57565283,126.7,126.65,0.063]
[1744577875069,25.57565283,126.7,126.65,17.48085283]
[1744577875269,8.1578,126.7,126.66,17.41785283]
[1744577876065,7.8932,126.69,126.66,17.41785283]
[1744577876268,7.8932,126.69,126.65,0.063]
[1744577876563,7.8932,126.69,126.65,17.48085283]
[1744577876992,7.8932,126.69,126.66,17.41785283]
[1744577877376,16.0506,126.7,126.66,17.41785283]
[1744577878168,16.0506,126.7,126.67,17.41785283]
[1744577879078,16.0506,126.7,126.66,17.41785283]
[1744577879382,17.41785283,126.69,126.65,0.063]
[1744577879596,17.41785283,126.67,126.65,0.063]
[1744577879795,36.06652314,126.7,126.65,0.063]
[1744577879796,17.41785283,126.68,126.65,0.063]
[1744577880096,16.0506,126.7,126.66,17.41785283]
[1744577880296,33.46845283,126.7,126.65,0.063]
[1744577880596,17.41785283,126.69,126.65,0.063]
[1744577881466,53.20005283,126.7,126.65,17.48085283]
[1744577881687,16.0506,126.7,126.67,17.41785283]
[1744577881892,16.0506,126.7,126.66,17.41785283]
[1744577882500,33.46845283,126.7,126.65,0.063]
[1744577883496,33.46845283,126.7,126.65,17.48085283]
[1744577883673,17.41785283,126.69,126.65,0.063]